bitfinex/quotes_BTCUSD_20251226
["timestamp","ask_amount","ask_price","bid_price","bid_amount"]
[1766758981567,0.01123519,89006.0,88998.0,0.01132501]
[1766758981754,0.01123532,89005.0,88998.0,8.881e-05]
[1766758981921,0.01123519,89006.0,88998.0,8.881e-05]
[1766758982156,0.01123557,89003.0,88998.0,8.881e-05]
[1766758982568,0.01123545,89004.0,88998.0,8.881e-05]
[1766758982972,0.01123532,89005.0,88998.0,8.881e-05]
[1766758983168,0.01348618,89008.0,88998.0,0.01132501]
[1766758983169,0.02472112,89008.0,88998.0,0.01132501]
[1766758983373,0.02472112,89008.0,88999.0,0.01123608]
[1766758983569,0.01123507,89007.0,88998.0,0.01132501]
[1766758983786,0.01123532,89005.0,88998.0,0.01132501]
[1766758983974,0.01123532,89005.0,88998.0,8.881e-05]
[1766758984392,0.01123519,89006.0,88998.0,8.881e-05]
[1766758984795,0.02472112,89008.0,88999.0,0.01123608]
[1766758985174,0.01123507,89007.0,88998.0,0.01132501]
[1766758986179,0.01123507,89007.0,88999.0,0.01123608]
[1766758986498,0.01123519,89006.0,88998.0,0.01132501]
[1766758986830,0.01123532,89005.0,88998.0,0.01132501]
[1766758987031,0.01123519,89006.0,88998.0,0.01132501]
[1766758987170,0.01123532,89005.0,88998.0,8.881e-05]
[1766758987972,0.01123532,89005.0,88998.0,0.01132501]
[1766758988219,0.01123532,89005.0,88998.0,8.881e-05]
[1766758988963,0.01123532,89005.0,88998.0,0.01132501]
[1766758989163,0.01123519,89006.0,88998.0,0.01132501]
[1766758989584,0.01123532,89005.0,88998.0,8.881e-05]
[1766758989768,0.01123519,89006.0,88998.0,8.881e-05]
[1766758990181,0.01123545,89004.0,88998.0,8.881e-05]
[1766758990433,0.01123532,89005.0,88998.0,8.881e-05]
[1766758991783,0.01123507,89007.0,88998.0,8.881e-05]
[1766758992532,0.01123519,89006.0,88998.0,8.881e-05]
[1766758992940,0.01123532,89005.0,88998.0,8.881e-05]
[1766758993999,0.01123507,89007.0,88999.0,0.01123608]
[1766758994336,0.01123519,89006.0,88998.0,0.01132501]
[1766758994900,0.01123507,89007.0,88999.0,0.01123608]
[1766758995236,0.01348618,89008.0,89001.0,0.01123582]
[1766758995390,0.01348618,89008.0,89004.0,0.01123545]
[1766758995591,0.00137177,89008.0,89004.0,0.01123545]
[1766758995813,0.00137177,89008.0,89005.0,0.01123532]
[1766758996031,0.00137177,89008.0,89004.0,0.01123545]
[1766758996233,0.00137177,89008.0,89003.0,0.01123557]
[1766758996733,0.00137177,89008.0,89004.0,0.01123545]
[1766758996937,0.00137177,89008.0,89003.0,0.01123557]
[1766759000000,0.01124,89007.0,89003.0,0.01123557]
[1766759000162,0.00416686,89007.0,89002.0,0.0112357]
[1766759002228,0.00416686,89007.0,89001.0,0.01123582]
[1766759002368,0.01124,89007.0,89001.0,0.01123582]
[1766759002580,0.000549,89001.0,88998.0,0.01132501]
[1766759002965,0.01123519,89006.0,88998.0,8.881e-05]
[1766759003823,0.01123557,89003.0,88998.0,8.881e-05]
[1766759003982,0.01123519,89006.0,88998.0,8.1e-07]
[1766759004180,0.01123532,89005.0,88998.0,8.1e-07]
[1766759004421,0.01123532,89005.0,88997.0,0.0088401]
[1766759004620,0.01123532,89005.0,88997.0,0.01128477]
[1766759005613,0.02247507,89007.0,88997.0,0.01128477]
[1766759005923,0.02247507,89007.0,88998.0,0.0112362]
[1766759006344,0.01123519,89006.0,88998.0,0.0112362]
[1766759006650,0.02247507,89007.0,88998.0,0.0112362]
[1766759007013,0.02247507,89007.0,88999.0,0.01123608]
[1766759007385,0.00545299,89005.0,88998.0,0.0112362]
[1766759007850,0.01668831,89005.0,88997.0,0.01128477]
[1766759008053,0.01123557,89003.0,88997.0,4.844e-05]
[1766759008259,0.06162977,89005.0,88986.0,0.01123772]
[1766759008260,0.00545299,89005.0,88986.0,0.01123772]
[1766759008459,0.01348618,88992.0,88987.0,0.01123759]
[1766759008664,0.01348618,88992.0,88986.0,0.01159759]
[1766759009574,0.01348618,88992.0,88986.0,0.00035987]
[1766759009708,0.01348618,88992.0,88978.0,0.01123873]
[1766759009709,0.01123784,88985.0,88978.0,0.01123873]
[1766759009939,0.05618825,88987.0,88969.0,0.22479705]
[1766759009940,0.00044225,88978.0,88969.0,0.06743916]
[1766759010140,0.00044225,88978.0,88971.0,0.01123961]
[1766759010359,0.00545299,88977.0,88974.0,0.01123923]
[1766759010580,0.00531699,88977.0,88974.0,0.01123923]
[1766759011064,0.01123797,88984.0,88975.0,0.01123911]
[1766759012403,0.0048334,88983.0,88973.0,0.05498394]
[1766759012660,0.00992556,88984.0,88975.0,0.01123911]
[1766759013203,0.01123784,88985.0,88975.0,0.06743466]
[1766759013602,0.01123784,88985.0,88892.0,0.05635872]
[1766759013603,0.01124,89007.0,88991.0,0.12777]
[1766759013809,0.01124,89007.0,89001.0,0.01123582]
[1766759014149,0.01124,89007.0,89002.0,0.0112357]
[1766759014300,0.01124,89007.0,88999.0,0.12777]
[1766759014502,0.00055,88999.0,88992.0,0.01123696]
[1766759014726,0.13677,89004.0,88995.0,0.01123658]
[1766759014922,0.14836484,89004.0,88995.0,0.01123658]
[1766759015132,0.01123557,89003.0,88994.0,0.01123671]
[1766759015330,0.14836484,89004.0,88995.0,0.01123658]
[1766759015707,0.14836484,89004.0,88994.0,0.01123671]
[1766759016096,0.13712939,89004.0,88995.0,0.01123658]
[1766759016296,0.14836484,89004.0,88994.0,0.01123671]
[1766759016516,0.01123557,89003.0,88994.0,0.01123671]
[1766759017018,0.0112357,89002.0,88993.0,0.01123683]
[1766759017430,0.0112357,89002.0,88994.0,0.01123671]
[1766759018182,0.01123557,89003.0,88994.0,0.01123671]
[1766759018457,0.0112357,89002.0,88994.0,0.01123671]
[1766759018657,0.01123557,89003.0,88995.0,0.01123658]
[1766759019168,0.14836484,89004.0,88996.0,0.01123646]
[1766759019308,0.01123557,89003.0,88995.0,0.01123658]
[1766759019509,0.13712939,89004.0,88995.0,0.01123658]
[1766759019959,0.14836484,89004.0,88995.0,0.01123658]
[1766759020347,0.13712939,89004.0,88998.0,0.0112362]
[1766759021555,0.13712939,89004.0,88997.0,0.01123633]
[1766759021956,0.13712939,89004.0,89000.0,0.01123595]
[1766759022156,0.13712939,89004.0,89001.0,0.01123582]
[1766759023340,0.00035939,89004.0,89001.0,0.01123582]
[1766759023545,0.01124,89007.0,89004.0,0.01159445]
[1766759023695,0.01123254,89027.0,89007.0,0.43367854]
[1766759023890,0.00010778,89019.0,89016.0,0.01123393]
[1766759024096,0.00010778,89019.0,89017.0,0.05608804]
[1766759024281,0.00010778,89019.0,89014.0,0.01123418]
[1766759024282,0.13506,89031.0,89024.0,0.01123292]
[1766759024483,0.01163115,89038.0,89025.0,0.05616399]
[1766759024685,0.01124,89037.0,89030.0,0.01123216]
[1766759024889,0.01124,89037.0,89029.0,0.01123229]
[1766759025225,0.02247128,89037.0,89029.0,0.01123229]
[1766759025471,0.01124,89037.0,89029.0,0.01123229]
[1766759025685,0.02247128,89037.0,89026.0,0.01123267]
[1766759025887,0.00055,89029.0,89027.0,0.01123254]
[1766759026101,0.01124,89029.0,89028.0,0.01123242]
[1766759029047,0.01124,89029.0,89027.0,0.01123254]
[1766759029265,0.00055,89027.0,89020.0,0.01123343]
[1766759029447,0.00055,89027.0,89024.0,0.01123292]
[1766759029780,0.01124,89029.0,89023.0,0.01123305]
[1766759029980,0.01124,89029.0,89024.0,0.01123292]
[1766759030349,0.01124,89029.0,89025.0,0.01123279]
[1766759030745,0.01124,89029.0,89024.0,0.01123292]
[1766759030949,0.01124,89029.0,89025.0,0.01123279]
[1766759031253,0.01124,89029.0,89024.0,0.01123292]
[1766759031647,0.01124,89029.0,89025.0,0.01123279]
[1766759031850,0.01124,89029.0,89026.0,0.01123267]
[1766759032050,0.01124,89029.0,89025.0,0.01123279]
[1766759032283,0.01124,89029.0,89026.0,0.01123267]
[1766759032466,0.01124,89029.0,89025.0,0.01123279]
[1766759032868,0.01124,89029.0,89026.0,0.01123267]
[1766759033785,0.01124,89029.0,89025.0,0.01123279]
[1766759033992,0.01124,89029.0,89026.0,0.01123267]
[1766759034507,0.01124,89033.0,89029.0,0.000549]
[1766759034667,0.01124,89033.0,89027.0,0.01123254]
[1766759034920,0.13506,89032.0,89024.0,0.01123292]
[1766759035500,0.13506,89032.0,89025.0,0.01123279]
[1766759035877,0.13506,89032.0,89026.0,0.01123267]
[1766759036078,0.13506,89032.0,89025.0,0.01123279]
[1766759036822,0.00055,89025.0,89024.0,0.01123292]
[1766759037383,0.13506,89032.0,89024.0,0.01123292]
[1766759038762,0.14629191,89032.0,89024.0,0.01123292]
[1766759039172,0.00055,89024.0,89016.0,0.01123393]
[1766759039527,0.13506,89026.0,89016.0,0.01123393]
[1766759039528,0.13506,89026.0,89018.0,0.06740208]
[1766759039702,0.13506,89026.0,89020.0,0.01123343]
[1766759040688,0.00055,89020.0,89013.0,0.01123431]
[1766759040890,0.00055,89020.0,89015.0,0.01123406]
[1766759040891,0.01348618,89017.0,89015.0,0.01123406]
[1766759041126,0.01293718,89017.0,89015.0,0.01123406]
[1766759041350,0.01293718,89017.0,89010.0,0.01123469]
[1766759041528,0.01293718,89017.0,88950.0,5.61197848]
[1766759041529,0.01293718,89017.0,88998.0,0.0112362]
[1766759041530,0.14629494,89008.0,88998.0,0.0112362]
[1766759041704,0.01348618,89003.0,89000.0,0.01123595]
[1766759041907,0.13506,89008.0,89005.0,0.01123532]
[1766759042488,0.01123418,89014.0,89003.0,0.05617749]
[1766759042489,0.13506,89014.0,89008.0,0.01123494]
[1766759042678,0.00010394,89016.0,89013.0,0.01123431]
[1766759042887,0.01124,89019.0,89016.0,0.01123393]
[1766759043038,0.01124,89024.0,89021.0,0.0112333]
[1766759043239,0.01124,89024.0,89020.0,0.01123343]
[1766759043472,0.01124,89024.0,89017.0,0.05616854]
[1766759043473,0.01124,89024.0,89018.0,0.01123368]
[1766759043632,0.01124,89024.0,89017.0,0.0112338]
[1766759043835,0.01124,89024.0,89016.0,0.01123393]
[1766759044480,0.01124,89024.0,89017.0,0.0112338]
[1766759044990,0.01124,89024.0,89019.0,0.01123355]
[1766759045187,0.01124,89024.0,89017.0,0.0112338]
[1766759045392,0.000549,89019.0,89017.0,0.0112338]
[1766759045743,0.01124,89024.0,89019.0,0.01123355]
[1766759045966,0.01124,89024.0,89017.0,0.0112338]
[1766759046382,0.02247292,89024.0,89012.0,0.0674061]
[1766759046562,0.0112333,89021.0,89013.0,0.01123431]
[1766759046758,0.13506,89021.0,89013.0,0.01123431]
[1766759046964,0.13506,89021.0,89014.0,0.01123418]
[1766759047489,0.13506,89021.0,89015.0,0.01123406]
[1766759047721,0.13506,89021.0,89016.0,0.01123393]
[1766759048659,0.13506,89021.0,89017.0,0.0112338]
[1766759048856,0.13506,89030.0,89024.0,0.01123292]
[1766759049111,0.00634735,89025.0,89024.0,0.01123292]
[1766759049490,0.13506,89030.0,89023.0,0.01123305]
[1766759049675,0.01124,89026.0,89023.0,0.01123305]
[1766759050010,0.01124,89026.0,89023.0,0.06739784]
[1766759050874,0.01124,89026.0,89023.0,0.01123305]
[1766759051508,0.001099,89023.0,89020.0,0.01123343]
[1766759051870,0.001099,89023.0,89020.0,0.06740014]
[1766759052187,0.01124,89026.0,89021.0,0.0112333]
[1766759052908,0.14629216,89030.0,89021.0,0.0112333]
[1766759053058,0.01124,89026.0,89022.0,0.01123317]
[1766759053265,0.01124,89026.0,89019.0,0.01123355]
[1766759053926,0.01124,89026.0,89020.0,0.01123343]
[1766759054091,0.01124,89026.0,89021.0,0.0112333]
[1766759054291,0.01124,89026.0,89022.0,0.01123317]
[1766759056998,0.01124,89026.0,89020.0,0.01123343]
[1766759057284,0.000549,89020.0,89018.0,0.01123368]
[1766759057759,0.14895,89025.0,89019.0,0.01123355]
[1766759057960,0.14895,89025.0,89018.0,0.01123368]
[1766759058161,0.14895,89025.0,89018.0,0.06740173]
[1766759058592,0.14895,89025.0,89018.0,0.01123368]
[1766759059570,0.14895,89025.0,89017.0,0.0112338]
[1766759059975,0.14895,89025.0,89018.0,0.01123368]
[1766759060179,0.14895,89025.0,89017.0,0.0112338]
[1766759060325,0.14895,89025.0,89018.0,0.01123368]
[1766759060934,0.16018279,89025.0,89017.0,0.0112338]
[1766759061497,0.16018279,89025.0,89016.0,0.05616911]
[1766759061498,0.14895,89025.0,89016.0,0.01123393]
[1766759061680,0.14895,89025.0,89018.0,0.01123368]
[1766759062524,0.000549,89018.0,89017.0,0.0112338]
[1766759062728,0.14895,89025.0,89018.0,0.01123368]
[1766759063693,0.14895,89025.0,89016.0,0.06740325]
[1766759064630,0.14895,89025.0,89018.0,0.01123368]
[1766759066694,0.14895,89025.0,89019.0,0.01123355]
[1766759066896,0.14895,89025.0,89018.0,0.01123368]
[1766759067303,0.14895,89025.0,89019.0,0.01123355]
[1766759067888,0.14895,89025.0,89018.0,0.01123368]
[1766759068085,0.14895,89025.0,89019.0,0.01123355]
[1766759068338,0.14895,89025.0,89018.0,0.01123368]
[1766759068547,0.14895,89025.0,89019.0,0.01123355]
[1766759069141,0.14895,89025.0,89020.0,0.01123343]
[1766759070069,0.14895,89025.0,89019.0,0.01123355]
[1766759070250,0.14895,89025.0,89018.0,0.01123368]
[1766759071022,0.14895,89025.0,89022.0,0.01123317]
[1766759072538,0.14895,89025.0,89022.0,0.0673985]
[1766759072968,0.000549,89022.0,89020.0,0.05616704]
[1766759073491,0.14895,89025.0,89022.0,0.01123317]
[1766759074190,0.14895,89025.0,89021.0,0.0112333]
[1766759074553,0.14895,89025.0,89021.0,0.00545674]
[1766759074794,0.14895,89025.0,89018.0,0.01123368]
[1766759075011,0.14895,89025.0,89015.0,0.01123406]
[1766759075302,0.00055,89015.0,89007.0,0.01124]
[1766759075502,6.861e-05,89015.0,89010.0,0.01123469]
[1766759075709,0.01123229,89029.0,89021.0,0.0112333]
[1766759076071,0.01123242,89028.0,89018.0,0.05616803]
[1766759076421,0.06964682,89031.0,89022.0,0.05616558]
[1766759076422,0.01348618,89031.0,89022.0,0.05616558]
[1766759076606,0.01124,89026.0,89021.0,0.0112333]
[1766759077229,0.01124,89026.0,89023.0,0.01123305]
[1766759077435,0.01124,89026.0,89020.0,0.05616682]
[1766759077598,0.01123216,89030.0,89021.0,0.0112333]
[1766759077802,0.01124,89026.0,89023.0,0.01123305]
[1766759078006,0.14895,89030.0,89025.0,0.01123279]
[1766759078213,0.01124,89029.0,89025.0,0.01123279]
[1766759078608,0.01124,89029.0,89024.0,0.01123292]
[1766759079815,0.01124,89029.0,89025.0,0.01123279]
[1766759080623,0.01124,89029.0,89024.0,0.01123292]
[1766759080824,0.01124,89029.0,89025.0,0.01123279]
[1766759081943,0.010691,89029.0,89024.0,0.01123292]
[1766759082456,0.010691,89029.0,89025.0,0.01123279]
[1766759082919,0.14895,89030.0,89025.0,0.01123279]
[1766759083125,0.01124,89029.0,89024.0,0.01123292]
[1766759083342,0.14895,89030.0,89023.0,0.06739785]
[1766759083511,0.01124,89029.0,89023.0,0.06739785]
[1766759083711,0.01124,89029.0,89022.0,0.01123317]
[1766759083712,0.16018216,89030.0,89022.0,0.01123317]
[1766759083906,0.01124,89029.0,89022.0,0.01123317]
[1766759084111,0.01123242,89028.0,89019.0,0.06740132]
[1766759084311,0.01123242,89028.0,89020.0,0.01123343]
[1766759086239,0.01123254,89027.0,89017.0,0.0112338]
[1766759086441,0.01123242,89028.0,89015.0,0.14132]
[1766759086977,0.01123292,89024.0,89015.0,0.15255406]
[1766759087871,0.01123279,89025.0,89015.0,0.20872394]
[1766759088045,0.01123279,89025.0,89015.0,0.15255406]
[1766759088494,0.01123292,89024.0,89016.0,0.01123393]
[1766759088695,0.06739578,89027.0,89017.0,0.0112338]
[1766759088862,0.01123267,89026.0,89017.0,0.0112338]
[1766759089643,0.01123267,89026.0,89018.0,0.01123368]
[1766759089850,0.01123279,89025.0,89017.0,0.0112338]
[1766759090402,0.01123292,89024.0,89016.0,0.01123393]
[1766759090804,0.01123279,89025.0,89017.0,0.0112338]
[1766759091185,0.01123292,89024.0,89016.0,0.01123393]
[1766759091382,0.01123279,89025.0,89017.0,0.0112338]
[1766759091625,0.01123292,89024.0,89016.0,0.01123393]
[1766759092544,0.01123279,89025.0,89016.0,0.01123393]
[1766759092779,0.01123292,89024.0,89016.0,0.01123393]
[1766759092904,0.01123305,89023.0,89015.0,0.20872388]
[1766759093103,0.0112333,89021.0,89015.0,0.14132]
[1766759093303,0.01123317,89022.0,89015.0,0.14132]
[1766759093543,0.01123317,89022.0,89015.0,0.15255406]
[1766759093724,0.05616399,89025.0,89016.0,0.01123393]
[1766759094085,0.01348618,89017.0,89015.0,0.14132]
[1766759096447,0.0021705,89017.0,89015.0,0.14132]
[1766759096673,0.01123279,89025.0,89016.0,0.01123393]
[1766759096872,0.01123292,89024.0,89016.0,0.01123393]
[1766759097563,0.01123305,89023.0,89016.0,0.01123393]
[1766759098188,0.01123305,89023.0,89015.0,0.15255406]
[1766759098383,0.01123317,89022.0,89015.0,0.14132]
[1766759099152,0.01123317,89022.0,89015.0,0.15255406]
[1766759099376,0.0112333,89021.0,89015.0,0.14132]
[1766759099575,0.01123355,89019.0,89015.0,0.140771]
[1766759100199,0.01123406,89015.0,89002.0,0.0112357]
[1766759100380,0.00055,89002.0,88992.0,0.01123696]
[1766759100575,0.57191813,89000.0,88992.0,0.00035939]
[1766759100754,0.57191813,89000.0,88992.0,0.01159635]
[1766759100755,0.13848,89000.0,88992.0,0.01159635]
[1766759100957,0.13848,89000.0,88994.0,0.01123671]
[1766759101458,0.13848,89000.0,88995.0,0.01123658]
[1766759101911,0.01348618,89003.0,88999.0,0.01123608]
[1766759102471,0.01348618,89003.0,88998.0,0.0112362]
[1766759102677,0.01348618,89003.0,88995.0,0.01123658]
[1766759102900,0.00174716,89003.0,88999.0,0.01123608]
[1766759103082,0.00174716,89003.0,89000.0,0.01123595]
[1766759103488,0.00174716,89003.0,88998.0,0.0112362]
[1766759103822,0.00174716,89003.0,88999.0,0.06741588]
[1766759104040,0.01124,89005.0,89003.0,0.01123557]
[1766759105055,0.01124,89005.0,89002.0,0.0112357]
[1766759105425,0.00774924,89005.0,89003.0,0.06741283]
[1766759105634,0.01123279,89025.0,89010.0,1e-08]
[1766759105836,0.01123242,89028.0,89019.0,0.01123355]
[1766759106036,0.02247254,89027.0,89018.0,0.01123368]
[1766759106239,0.01123267,89026.0,89016.0,0.16034393]
[1766759106461,0.01123279,89025.0,89017.0,0.0112338]
[1766759106676,0.01123305,89023.0,89016.0,0.14911]
[1766759107042,0.0112333,89021.0,89016.0,0.148561]
[1766759107280,0.0112333,89021.0,89010.0,0.07864788]
[1766759107281,0.01123343,89020.0,89011.0,0.01123456]
[1766759107490,0.01123343,89020.0,89010.0,0.22775788]
[1766759107491,0.01348618,89017.0,89010.0,1e-08]
[1766759107657,0.01348618,89017.0,89011.0,0.01124]
[1766759108080,0.02471998,89017.0,89011.0,0.01124]
[1766759108417,0.01123418,89014.0,89011.0,0.01124]
[1766759108579,0.01348618,89017.0,89012.0,0.01123444]
[1766759108776,0.01348618,89017.0,89014.0,0.000549]
[1766759109291,0.01348618,89017.0,89013.0,0.01123431]
[1766759109526,0.01348618,89017.0,89012.0,0.01123444]
[1766759109862,0.01348618,89017.0,89014.0,0.01123418]
[1766759111098,0.06744319,89023.0,89014.0,0.01123418]
[1766759111099,4.439e-05,89023.0,89017.0,0.0117828]
[1766759111501,4.439e-05,89023.0,89019.0,0.01123355]
[1766759111718,4.439e-05,89023.0,89020.0,0.01123343]
[1766759112220,4.439e-05,89023.0,89019.0,0.01123355]
[1766759112578,4.439e-05,89023.0,89018.0,0.01123368]
[1766759112799,4.439e-05,89023.0,89019.0,0.01123355]
[1766759113194,4.439e-05,89023.0,89020.0,0.01123343]
[1766759113995,4.439e-05,89023.0,89021.0,0.05616614]
[1766759113996,3.9e-07,89023.0,89021.0,0.05616614]
[1766759114402,3.9e-07,89023.0,89020.0,0.01123343]
[1766759114998,3.9e-07,89023.0,89020.0,0.06740022]
[1766759116745,3.9e-07,89023.0,89021.0,0.05616608]
[1766759116909,0.01124,89029.0,89023.0,0.01123305]
[1766759118480,4.4e-05,89023.0,89022.0,0.01123317]
[1766759118664,0.00975616,89030.0,89023.0,0.01123305]
[1766759118860,0.00975616,89030.0,89021.0,0.0112333]
[1766759118861,0.01123229,89029.0,89021.0,0.0112333]
[1766759119454,0.09331061,89030.0,89021.0,0.0112333]
[1766759119885,0.01123229,89029.0,89022.0,0.01123317]
[1766759120294,0.0917829,89030.0,89021.0,0.0112333]
[1766759120472,0.0797829,89030.0,89021.0,0.0112333]
[1766759120872,0.0677829,89030.0,89021.0,0.0112333]
[1766759121271,0.0557829,89030.0,89021.0,0.0112333]
[1766759121515,0.0437829,89030.0,89021.0,0.0112333]
[1766759121697,0.02055074,89030.0,89024.0,0.01123292]
[1766759121896,0.00931074,89030.0,89024.0,0.01123292]
[1766759122247,0.00931074,89030.0,89025.0,0.01123279]
[1766759122248,0.00855074,89030.0,89025.0,0.01123279]
[1766759122511,0.01348618,89026.0,89024.0,0.01123292]
[1766759122888,0.01348618,89025.0,89024.0,0.01123292]
[1766759123060,0.01293718,89025.0,89024.0,0.01123292]
[1766759123261,0.00093718,89025.0,89024.0,0.01123292]
[1766759123671,0.01348618,89030.0,89024.0,0.01123292]
[1766759123874,0.00148618,89030.0,89024.0,0.01123292]
[1766759124374,0.01797208,89025.0,89024.0,0.01123292]
[1766759124571,0.00597208,89025.0,89024.0,0.01123292]
[1766759124778,0.0231762,89031.0,89024.0,0.01123292]
[1766759124974,0.0111762,89031.0,89024.0,0.01123292]
[1766759125218,0.01797208,89025.0,89024.0,0.01123292]
[1766759125418,0.01797208,89030.0,89023.0,0.01123305]
[1766759125621,0.00597208,89030.0,89024.0,0.01123292]
[1766759125886,0.02164811,89032.0,89024.0,0.01123292]
[1766759126066,0.00964811,89032.0,89025.0,0.01123279]
[1766759126276,0.02088002,89032.0,89024.0,0.01123292]
[1766759126416,0.00888002,89032.0,89024.0,0.01123292]
[1766759126615,0.01123204,89031.0,89022.0,0.05616549]
[1766759126939,0.0650396,89032.0,89024.0,0.01123292]
[1766759126940,0.00888002,89032.0,89024.0,0.01123292]
[1766759127744,0.01123204,89031.0,89023.0,0.01123305]
[1766759128128,0.00811206,89032.0,89023.0,0.01123305]
[1766759128324,0.01123204,89031.0,89023.0,0.01123305]
[1766759128530,0.06350396,89032.0,89023.0,0.01123305]
[1766759129081,0.05150396,89032.0,89022.0,0.06739866]
[1766759129226,0.01123216,89030.0,89022.0,0.01123317]
[1766759129685,0.06662471,89031.0,89022.0,0.01123317]
[1766759130062,0.01123204,89031.0,89022.0,0.01123317]
[1766759130231,0.06196791,89032.0,89022.0,0.01123317]
[1766759130429,0.04996791,89032.0,89022.0,0.01123317]
[1766759131189,0.03796791,89032.0,89022.0,0.01123317]
[1766759131787,0.01123216,89030.0,89022.0,0.01123317]
[1766759132088,0.01123204,89031.0,89022.0,0.01123317]
[1766759132239,0.01123216,89030.0,89022.0,0.01123317]
[1766759132433,0.01123191,89032.0,89023.0,0.01123305]
[1766759133853,0.01123191,89032.0,89024.0,0.01123292]
[1766759134009,0.09556179,89033.0,89025.0,0.01123279]
[1766759134208,0.01123191,89032.0,89024.0,0.01123292]
[1766759134691,0.06739181,89032.0,89023.0,0.01123305]
[1766759134871,0.01123191,89032.0,89024.0,0.01123292]
[1766759135070,0.01123204,89031.0,89023.0,0.01123305]
[1766759135345,0.01123204,89031.0,89022.0,0.06739868]
[1766759135346,0.01123216,89030.0,89022.0,0.06739868]
[1766759135540,0.01123204,89031.0,89023.0,0.01123305]
[1766759135747,0.01123191,89032.0,89024.0,0.01123292]
[1766759136121,0.01123204,89031.0,89022.0,0.01123317]
[1766759136288,0.000549,89024.0,89021.0,0.0112333]
[1766759136688,0.01123216,89030.0,89022.0,0.01123317]
[1766759136891,0.01123254,89027.0,89019.0,0.01123355]
[1766759137094,0.05616273,89027.0,89018.0,0.01124]
[1766759137383,0.01123279,89025.0,89018.0,0.01069]
[1766759137521,0.01123267,89026.0,89018.0,0.02192368]
[1766759137856,0.01123254,89027.0,89018.0,0.02192368]
[1766759138147,0.01123254,89027.0,89019.0,0.01123355]
[1766759138349,0.07309,89029.0,89019.0,0.01123355]
[1766759138558,0.07309,89029.0,89022.0,0.01123317]
[1766759138700,0.06109,89029.0,89022.0,0.01123317]
[1766759139146,0.04909,89029.0,89022.0,0.01123317]
[1766759139622,0.03709,89029.0,89022.0,0.01123317]
[1766759139993,0.02426185,89032.0,89027.0,0.01123254]
[1766759140283,0.01124,89033.0,89026.0,0.01123267]
[1766759140440,0.01124,89033.0,89027.0,0.01123254]
[1766759141028,0.01124,89033.0,89026.0,0.01123267]
[1766759142051,0.01124,89033.0,89027.0,0.01123254]
[1766759142256,0.01124,89033.0,89026.0,0.01123267]
[1766759142455,0.01124,89033.0,89029.0,0.01123229]
[1766759142683,0.01124,89033.0,89027.0,0.01123254]
[1766759142684,0.01124,89033.0,89028.0,0.01123242]
[1766759143472,0.01124,89033.0,89027.0,0.01123254]
[1766759143684,0.07309,89035.0,89027.0,0.05616273]
[1766759143839,0.01123153,89035.0,89026.0,0.01123267]
[1766759144040,0.01123153,89035.0,89027.0,0.01123254]
[1766759144269,0.01123141,89036.0,89028.0,0.01123242]
[1766759144591,0.02426185,89037.0,89029.0,0.01123229]
[1766759144811,0.01164,89038.0,89030.0,0.01123216]
[1766759145109,0.01164,89038.0,89031.0,0.01123204]
[1766759145595,0.01164,89038.0,89030.0,0.01123216]
[1766759145800,0.02287115,89038.0,89030.0,0.01123216]
[1766759146299,0.02287115,89038.0,89029.0,0.01106661]
[1766759146499,0.02287115,89038.0,89030.0,0.01123216]
[1766759146655,0.06779613,89038.0,89028.0,0.01123242]
[1766759146859,0.01123153,89035.0,89027.0,0.01123254]
[1766759147056,0.01123166,89034.0,89026.0,0.01123267]
[1766759147408,0.01123153,89035.0,89027.0,0.01123254]
[1766759147938,0.06738804,89037.0,89027.0,0.01123254]
[1766759148310,0.01123141,89036.0,89028.0,0.01123242]
[1766759148508,0.01123128,89037.0,89029.0,0.01123229]
[1766759148675,0.01123141,89036.0,89026.0,0.06739559]
[1766759148913,0.01123141,89036.0,89028.0,0.01123242]
[1766759149133,0.01123141,89036.0,89027.0,0.01123254]
[1766759149335,0.01123153,89035.0,89027.0,0.01123254]
[1766759149543,0.01046294,89036.0,89027.0,0.01123254]
[1766759149735,0.01046294,89036.0,89028.0,0.01123242]
[1766759150008,0.01046269,89037.0,89029.0,0.01123229]
[1766759150224,0.07749011,89038.0,89029.0,0.01123229]
[1766759150714,0.01123128,89037.0,89029.0,0.01123229]
[1766759151223,0.01123141,89036.0,89028.0,0.01123242]
[1766759151422,0.01123153,89035.0,89028.0,0.01123242]
[1766759151621,0.01123141,89036.0,89027.0,0.01123254]
[1766759151804,0.01123128,89037.0,89028.0,0.01123242]
[1766759152325,0.01123141,89036.0,89028.0,0.01123242]
[1766759152532,0.01123128,89037.0,89029.0,0.01123229]
[1766759152703,0.01123141,89036.0,89028.0,0.01123242]
[1766759152890,0.01123153,89035.0,89027.0,0.01123254]
[1766759153087,0.01123128,89037.0,89028.0,0.01123242]
[1766759154098,0.000549,89028.0,89019.0,0.01123355]
[1766759154315,0.000549,89028.0,89021.0,0.0112333]
[1766759154514,0.06739257,89031.0,89021.0,0.0112333]
[1766759154515,0.06739178,89032.0,89023.0,0.01123305]
[1766759154719,0.01123204,89031.0,89022.0,0.01123317]
[1766759154927,0.01123191,89032.0,89023.0,0.01123305]
[1766759155180,0.01123179,89033.0,89024.0,0.01123292]
[1766759155557,0.01123242,89028.0,89020.0,0.01123343]
[1766759155761,0.06739481,89028.0,89019.0,0.01123355]
[1766759155937,0.01123242,89028.0,89020.0,0.01123343]
[1766759156120,0.01123254,89027.0,89018.0,0.02192368]
[1766759156323,0.01123254,89027.0,89016.0,0.01123393]
[1766759156324,0.01123292,89024.0,89014.0,0.01123418]
[1766759156523,0.01123292,89024.0,89015.0,0.01124]
[1766759156524,0.01123317,89022.0,89015.0,0.01124]
[1766759156722,0.0112333,89021.0,89014.0,4.439e-05]
[1766759157063,0.01123343,89020.0,89015.0,0.00276172]
[1766759157358,0.01123355,89019.0,89015.0,0.00276172]
[1766759157763,0.01123343,89020.0,89015.0,0.00276172]
[1766759158381,0.01123305,89023.0,89015.0,0.00276172]
[1766759158382,0.01123305,89023.0,89020.0,4.4e-05]
[1766759158781,0.0112333,89021.0,89015.0,0.00276172]
[1766759158979,0.01123317,89022.0,89015.0,0.00276172]
[1766759159333,0.0112333,89021.0,89015.0,0.00276172]
[1766759160151,0.01123317,89022.0,89015.0,0.00276172]
[1766759160347,0.0112333,89021.0,89015.0,0.00276172]
[1766759160600,0.01123355,89019.0,89015.0,0.00276172]
[1766759160780,0.01123355,89019.0,89010.0,1e-08]
[1766759160781,0.0566753,89015.0,89010.0,1e-08]
[1766759160984,0.08762396,89011.0,89010.0,1e-08]
[1766759161267,0.08762396,89011.0,88991.0,0.01124]
[1766759161268,0.01123608,88999.0,88991.0,0.01124]
[1766759161667,0.07865321,89004.0,88999.0,4.4e-05]
[1766759161876,0.07865321,89004.0,88991.0,0.02247709]
[1766759161877,0.01123418,89014.0,89006.0,0.01123519]
[1766759162071,0.01123456,89011.0,89004.0,0.00055]
[1766759162312,0.01123469,89010.0,89004.0,0.00055]